Cogmind - Beta 15 @@@ ROGUE MODE // 2025.06.19 @ 01:12:49 Player: jumpy Result: Self-destructed Performance ------------- Evolutions (1) 500 Regions Visited (2) 400 Robots Destroyed (21) 105 Value Destroyed (430) 430 Prototype IDs (0) 0 Alien Tech Used (0) 0 Bonus (0) 0 TOTAL SCORE: 1435 Bonus ------- None Cogmind --------- Core Integrity 254/400 Matter 300/300 Energy 158/160 System Corruption 0% Temperature Critical (569) Movement Core (300) Ox5 Location -9/Materials Parts ------- > --- POWER (1) -------- Light Nuclear Core > --- PROPULSION (3) --- (None) > --- UTILITY (3) ------ Medium Storage Unit Seismic Detector Hacking Suite > --- WEAPON (2) ------- (None) > --- INVENTORY (10) --- Light Nuclear Core Light Nuclear Core Wheel Visual Processing Unit Signal Interpreter Improved Terrain Scanner Small Laser Assault Rifle Grenade Launcher Mining Laser Peak State ------------ > --- POWER ------------ Light Nuclear Core > --- PROPULSION ------- Light Treads Light Treads > --- UTILITY ---------- Medium Storage Unit Seismic Detector Hacking Suite > --- WEAPON ----------- Beam Cannon Beam Cannon > --- INVENTORY -------- Light Ion Engine Wheel Compact Wheel Visual Processing Unit Signal Interpreter Improved Terrain Scanner Small Laser Assault Rifle Grenade Launcher Mining Laser [Rating: 13] Favorites ----------- Power Ion Engine Engine Ion Engine Power Core Light Nuclear Core Propulsion Light Treads Treads Light Treads Utility Seismic Detector Device Seismic Detector Storage Medium Storage Unit Hackware Hacking Suite Weapon Beam Cannon Energy Cannon Beam Cannon Ballistic Gun Assault Rifle Build | -11 -10 -9 ------- Run | Yrd Mat Mat Slots Evolved 2 | . . 2 Power . | . . . Propulsion 1 | . . 1 Utility 1 | . . 1 Weapon . | . . . Parts Attached 15 | 8 5 2 Power 3 | 1 1 1 Engine 2 | 1 1 . Core 1 | . . 1 Reactor . | . . . Propulsion 2 | 2 . . Treads 2 | 2 . . Leg . | . . . Wheel . | . . . Hover . | . . . Flight . | . . . Utility 5 | 2 2 1 Device 2 | 1 1 . Storage 2 | 1 1 . Processor . | . . . Hackware 1 | . . 1 Protection . | . . . Artifact . | . . . Weapon 5 | 3 2 . Energy Gun . | . . . Energy Cannon 2 | . 2 . Ballistic Gun 3 | 3 . . Ballistic Cannon . | . . . Launcher . | . . . Special Weapon . | . . . Impact Weapon . | . . . Slashing Weapon . | . . . Piercing Weapon . | . . . Special Melee Weapon . | . . . Unidentified Prototypes . | . . . Parts Lost 5 | . 1 4 Power . | . . . Propulsion 2 | . . 2 Utility 1 | . 1 . Weapon 2 | . . 2 Highest Loss Streak 4 | . 1 4 To Critical Strikes . | . . . Average Backups 8 | 4 8 10 Power 1 | . 1 1 Propulsion 1 | 1 2 1 Utility 2 | . 2 3 Weapon 2 | 1 2 4 Tool/Special . | . . . Unused Backups 11 | . . 11 Power 3 | . . 3 Propulsion 2 | . . 2 Utility 3 | . . 3 Weapon 3 | . . 3 Tool/Special . | . . . Average Slot Usage (%) 93 | . 99 86 Engine 7 | . 14 . Core 4 | . . 10 Treads 24 | . 28 21 Device 12 | . 13 11 Storage 12 | . 14 11 Hackware 4 | . . 10 Energy Cannon 17 | . 13 21 Ballistic Gun 8 | . 14 . Peak Build Rating 13 | 7 8 13 Average Rating 9 | 5 7 12 On Entrance 5 | . 7 8 Naked Turns . | . . . Heaviest Build 22 | 14 22 22 Greatest Support 40 | 40 40 40 Greatest Overweight (x) . | . . . Average Overweight (x) . | . . . Largest Inventory Capacity 10 | 8 10 10 Average Capacity 9 | 7 9 10 Most Carried 10 | 7 10 10 Average Carried 8 | 4 8 10 Final Capacity 10 | 8 10 10 Final Carried 10 | 7 10 10 Class Distribution -------------------- 100% | Mutant Dominant Class ---------------- Mutant | -10/Materials Mutant | -9/Materials Resources | -11 -10 -9 ----------- Run | Yrd Mat Mat Matter Collected 483 | 304 149 30 Remotely . | . . . Salvage Created 641 | 165 223 253 Parts 39 | 8 22 9 Haulers Intercepted . | . . . Recyclers Shooed 1 | . 1 . Parts Field Recycled . | . . . Retrieved Matter . | . . . Parts Self-Destructed . | . . . Prevented . | . . . Kills | -11 -10 -9 ------- Run | Yrd Mat Mat Combat Hostiles Destroyed 15 | . 9 6 Guns 3 | . 3 . Cannons 11 | . 6 5 Classes Destroyed 8 | 3 4 1 Worker 1 | 1 . . Builder 1 | . 1 . Tunneler 2 | 2 . . Recycler 1 | 1 . . Watcher 1 | . 1 . Swarmer 6 | . 6 . Grunt 7 | . 3 4 Sentry 2 | . . 2 Best Kill Streak 5 | 2 5 2 Combat Bots Only 5 | . 5 2 Max Kills in Single Turn 1 | 1 1 1 Gunslinging . | . . . Exploded . | . . . Melee . | . . . Uniques/NPCs Destroyed . | . . . Combat | -11 -10 -9 -------- Run | Yrd Mat Mat Hostile Shots Fired 98 | . 51 47 Missed 25 | . 16 9 Hits 73 | . 35 38 Projectile 73 | . 35 38 Damage Taken 897 | . 321 576 Core 208 | . 62 146 Absorbed by Shields . | . . . Core Remaining (%) 87 | 100 75 . Volleys Fired 60 | 11 27 22 Largest 2 | 2 2 2 Hottest 120 | 40 120 120 Shots Fired 118 | 22 54 42 Gun 54 | 22 32 . Cannon 64 | . 22 42 Launcher . | . . . Special . | . . . Kinetic 54 | 22 32 . Thermal 64 | . 22 42 Explosive . | . . . Electromagnetic . | . . . Robot Hit Streak 6 | 6 6 4 Robot Miss Streak 3 | 1 3 2 Penetration Max . | . . . Secondary Targets . | . . . Shots Hit Robots 69 | 13 31 25 Core Hits 28 | 6 14 8 Critical Kills . | . . . Critical Parts Destroyed . | . . . Critical Strikes . | . . . Melee Attacks . | . . . Impact . | . . . Slashing . | . . . Piercing . | . . . Sneak Attacks . | . . . Combat Hostiles . | . . . Follow-up Attacks . | . . . Damage Inflicted 1007 | 126 438 443 Guns 321 | 126 195 . Cannons 682 | . 243 439 Explosions . | . . . Melee . | . . . Ramming 4 | . . 4 Kinetic 321 | 126 195 . Thermal 682 | . 243 439 Explosive . | . . . Electromagnetic . | . . . Impact . | . . . Slashing . | . . . Piercing . | . . . Highest Corruption . | . . . Average Corruption . | . . . Corruption Purged . | . . . Corruption Blocked . | . . . Overload Shots . | . . . Overflow Damage . | . . . Projectiles . | . . . Explosions . | . . . Melee . | . . . Knockbacks . | . . . Impact . | . . . Kinetic . | . . . Secondary . | . . . Self-Inflicted Damage . | . . . Shots . | . . . Rammed 5 | . . 5 Targets Rammed 5 | . . 5 Kicked . | . . . Crushed . | . . . Highest Temperature 569 | . 252 569 Average Temperature 135 | . 84 177 Received Heat Transfer 339 | . 90 249 Effects 5 | . . 5 Shutdowns 1 | . . 1 Energy Bleed 2 | . . 2 Interference 1 | . . 1 Damage (core) 1 | . . 1 Siege Activations . | . . . Martial Activations . | . . . Shielding Activations . | . . . Robots Disrupted . | . . . Combat Hostiles . | . . . Robots Corrupted . | . . . Combat Hostiles . | . . . Parts Fried . | . . . Impact Corruptions . | . . . Robots Melted 1 | . . 1 Combat Hostiles 1 | . . 1 Parts Melted 2 | . . 2 Heat Transferred 1443 | . 518 925 Parts Sabotaged . | . . . Parts Stolen . | . . . Parts Stripped . | . . . Power Chain Reactions . | . . . Alert | -11 -10 -9 ------- Run | Yrd Mat Mat Maximum Alert Level 1 | . 1 . Low Security (%) 88 | 100 73 100 Level 1 11 | . 26 . Level 2 . | . . . Level 3 . | . . . Level 4 . | . . . Level 5 . | . . . High Security . | . . . Max Security . | . . . Peak Influence 236 | 5 236 74 Initial 74 | . . 74 Average 57 | . 104 32 Influence Increases 504 | 20 328 156 Destroy 0b10 Robot/C 300 | . 180 120 Destroy 0b10 Robot/NC 30 | 20 10 . Destroy Leader 62 | . 42 20 Successful Hack 5 | . 5 . Destroy Structure 2 | . 1 1 Lose Combat Pursuer 105 | . 90 15 Influence Decreases 486 | 20 152 314 Entered New Map 102 | . . 102 Time Decay 334 | 20 142 172 Lost Part 50 | . 10 40 Squads Dispatched 3 | . 2 1 Investigation . | . . . Extermination . | . . . Reinforcement 3 | . 2 1 Assault . | . . . Garrison . | . . . Intercept . | . . . Searches Triggered . | . . . Construction Impeded . | . . . Haulers Reinforced . | . . . Active Scanning Responses . | . . . Cargo Convoy Interrupts . | . . . Stealth | -11 -10 -9 --------- Run | Yrd Mat Mat Distress Signals 5 | . 2 3 Communications Jammed . | . . . Distress Signals . | . . . Times Spotted 34 | . 21 13 Peak Tracking Total 8 | . 8 5 Tactical Retreats 3 | . 2 1 Traps | -11 -10 -9 ------- Run | Yrd Mat Mat Traps Triggered . | . . . Indirectly . | . . . Trap Hack Attempts . | . . . Triggered . | . . . Disarmed . | . . . Reprogrammed . | . . . Reused . | . . . Traps Extracted . | . . . Installed . | . . . Triggered . | . . . Machines | -11 -10 -9 ---------- Run | Yrd Mat Mat Machines Disabled . | . . . Max in Single Turn . | . . . Machines Repaired . | . . . Machines Dismantled . | . . . Machines Sabotaged . | . . . Overloaded Fab Kills . | . . . Hacking | -11 -10 -9 --------- Run | Yrd Mat Mat Machines Accessed 2 | . 1 1 Terminals 2 | . 1 1 Fabricators . | . . . Repair Stations . | . . . Recycling Units . | . . . Scanalyzers . | . . . Garrison Access . | . . . Total Hacks 5 | . 2 3 Successful 3 | . 2 1 Failed 2 | . . 2 Catastrophic . | . . . Database Lockouts . | . . . Manual 5 | . 2 3 Terminals 5 | . 2 3 Fabricators . | . . . Repair Stations . | . . . Recycling Units . | . . . Scanalyzers . | . . . Garrison Access . | . . . Terminal Hacks . | . . . Fabricator Hacks . | . . . Repair Station Hacks . | . . . Recycling Unit Hacks . | . . . Scanalyzer . | . . . Garrison Access Hacks . | . . . Unauthorized Hacks 3 | . 2 1 Terminals 3 | . 2 1 Botnet 1 | . 1 . Skim 2 | . 1 1 Fabricators . | . . . Repair Stations . | . . . Recycling Units . | . . . Scanalyzers . | . . . Garrison Access . | . . . Data Cores Recovered . | . . . Used . | . . . Hacking Detections 1 | . . 1 Full Trace Events . | . . . Feedback Events . | . . . Feedback Blocked . | . . . Robot Schematics Acquired . | . . . Robots Built . | . . . Authchips . | . . . Time . | . . . Total Robot Build Rating . | . . . Part Schematics Acquired . | . . . Parts Built . | . . . Authchips . | . . . Time . | . . . Total Part Build Rating . | . . . Parts Repaired . | . . . Time . | . . . Parts Recycled . | . . . Recycled Matter . | . . . Retrieved Matter . | . . . Retrieved Components . | . . . Parts Scanalyzed . | . . . Part Schematics Acquired . | . . . Parts Damaged . | . . . Bothacking | -11 -10 -9 ------------ Run | Yrd Mat Mat Used RIF Installer . | . . . Robots Hacked . | . . . Non-combat . | . . . Combat . | . . . Robot Hacks Applied . | . . . Relay Couplers Released . | . . . Fabnet Peak Effective % . | . . . Robots Rewired . | . . . Allies Hacked . | . . . Hacks Repelled . | . . . Allies | -11 -10 -9 -------- Run | Yrd Mat Mat Total Allies . | . . . Largest Group . | . . . Highest-Rated Group . | . . . Highest-Rated Ally . | . . . Total Orders . | . . . Ally Attacks . | . . . Total Damage . | . . . Kills . | . . . Allies Corrupted . | . . . Allies Melted . | . . . Intel | -11 -10 -9 ------- Run | Yrd Mat Mat Active Infowar (turns) 975 | 106 455 414 Seismic 975 | 106 455 414 Robot Analysis Total . | . . . Derelict Logs Recovered . | . . . Drone Launches . | . . . Drone Recoveries . | . . . Exploration | -11 -10 -9 ------------- Run | Yrd Mat Mat Turns Passed 1104 | 205 483 416 Spaces Moved 542 | 100 242 200 Core 2 | 2 . . Treads 540 | 98 242 200 Legs . | . . . Wheels . | . . . Hover . | . . . Flight . | . . . Fastest Speed 50 | 50 160 160 Average Speed 159 | 157 160 160 Slowest Speed 160 | 160 160 160 Overloaded Moves . | . . . Propulsion Burnouts . | . . . Robots Hopped . | . . . Potential Cave-ins . | . . . Cave-ins Triggered . | . . . Exploration Rate (%) 24 | 9 45 19 Regions Visited 2 Branch Regions . Pre-discovered Areas . | . . . Known Exits Taken . | . . . Unknown Exits Taken 2 | 1 1 . Scrap Searched . | . . . Spaces Dug . | . . . Terrain Destroyed . | . . . Melee . | . . . Projectile . | . . . AOE . | . . . Terrain Rammed . | . . . Walls Destroyed . | . . . Machines Disabled . | . . . Actions | -11 -10 -9 --------- Run | Yrd Mat Mat Total 660 | 124 285 251 Wait 20 | . 4 16 Move 540 | 99 241 200 Hop . | . . . Pick Up 13 | 6 4 3 Fast Attach 8 | 7 . 1 Attach 1 | . 1 . Detach . | . . . Swap 7 | 1 5 1 Drop 6 | . 3 3 Fire 60 | 11 27 22 Melee . | . . . Ram . | . . . Kick . | . . . Crush 5 | . . 5 Escape Stasis . | . . . Rewire . | . . . Trap . | . . . Miscellaneous . | . . . Route ------- -11/Scrapyard -10/Materials (discovered 2 exits: *Mat / [*Min]) -9/Materials (discovered 3 exits: [*Min x2] / [*Sto]) History --------- Turn | Location | Event 6 | -11/Scrapyard | Discovered new exit (range 15) 206 | -11/Scrapyard | Entered Materials 302 | -10/Materials | Build established: Mutant 408 | -10/Materials | Discovered new exit (range 13) 654 | -10/Materials | Discovered new exit (range 16) 689 | -10/Materials | Entered another Materials area 689 | -9/Materials | Evolved 2 slots: Propulsion x1, Utility x1 689 | -9/Materials | Discovered new exit (range 15) 787 | -9/Materials | Discovered new exit (range 13) 1025 | -9/Materials | Discovered new exit (range 16) 1105 | -9/Materials | Self-destructed Last Messages --------------- 01046_ ALERT: Hostiles spotted, dispatching reinforcements to Terminal M003. 01047_ K-01 Serf collects debris. 01060_ C-30 ARC bursts open, deploying its payload. 01060_ G-47 Trooper unfolds itself. 01060_ G-34 Mercenary unfolds itself. 01071_ Slammed into G-34 Mercenary. 01080_ Aluminum Leg melted. 01080_ G-34 Mercenary destroyed. 01088_ Overheating: Energy bleed (-40). 01091_ Lgt. Treads destroyed. 01092_ Slammed into G-47 Trooper. 01097_ Lgt. Treads destroyed. 01098_ Overheating: Energy bleed (-25). 01099_ Beam Cannon destroyed. 01103_ Power failure, Lgt. Nuclear Core shutdown. 01103_ Overheating: System interference. 01103_ Seismic Detector temporarily disabled. 01104_ Beam Cannon destroyed. 01105_ Overheating: Core damaged (-64). Map ----- +----------------------------------------------------+ | ?????????????????????????????????????????????????? | | ?????????????????????????????????????????????????? | | ?????????????????????????????????????????????????? | | ?????????????????????????????????????????????????? | | ?????????????????????????????????????????????????? | | ?????????????????????????????????????????????????? | | ?????????????????????????????????????????????????? | | ???????????????????????? ???????????????????????? | | ???????????????????????? ???????????????????????? | | ???????????????????????? ???????????????????????? | | ???????????????????????? ???????????????????????? | | ???????????????????????? ???????????????????????? | | ?????????????????? ?? ???????????????????????? | | ?????????????????# ??"%#??????????????????????? | | ?????????????????# ?? /??????????????????????? | | ?????????????????+ ?? #??????????????????????? | | ?????????????????# ?? #??????????????????????? | | ????????????????## #### #??????????????????????? | | ????????????????# "# #??????????????????????? | | ????????????????# ""# #??????????????????????? | | ????????????????# ||# #??????????????????????? | | ????????????????# < ""# #??????????????????????? | | ????????????????# ||# #??????????????????????? | | ????????????????# ""# #??????????????????????? | | ????????????????# ?#%#??????????????????????? | | ??????????######## ####@######?????????????????? | | ??????????# # # g%g #?????????????????? | | ??????????# + !;% g #?????????????????? | | ??????????# ""# # #?????????????????? | | ??????????# Y"# # #?????????????????? | | ??????????# "?# ###########?????????????????? | | ??????????# ?# #############+#?????????????? | | ??????????#####??# ????????????? | | ?????????????????# ????????????? | | ?????????????????# ????????????? | | ?????????????????#### ######+#### ???????????????? | | ????????????????????# #??????????????????????????? | | ????????????????????# #??????????????????????????? | | ????????????????????# #??????????????????????????? | | ????????????????????# #??????????????????????????? | | ???????????##########%#??????????????????????????? | | ???????+ #??????????????????????????? | | ???????????######### #??????????????????????????? | | ???????????????????#% #??????????????????????????? | | ???????????????????# #?????????? ????????????? | | ???????????????????# #?????????# #???????????? | | ???????#######?????# ########### #???????????? | | ???????# ####### ^ ^ #???????????? | | ???????# ^ ???????????? | | ???????# T ^ """ """ ???????????? | +----------------------------------------------------+ Best States ------------- Heat Dissipation 28 Energy Generation 14 Energy Capacity 250 Matter Stores 300 Matter Capacity 300 Sight Range 16 Terrain Scan Density 10 Evasion (%) 40 Recoil Reduction 2 Offensive Hacking 10 Item Schematics ----------------- None Robot Schematics ------------------ None Fabricated ------------ Nothing Repaired ---------- Nothing Alien Tech Used ----------------- None Achievements -------------- None Challenges ------------ None Game ------ Seed HellfireAblativeFlail Manual? 0 Play Time 00:07:07 Cumulative 127.6 hours Start 2025.06.19 @ 01:07:45 End 2025.06.19 @ 01:12:49 Sessions 1 Manual Loads 0 Difficulty Rogue Special Mode None Game No. 334 Rogue 334 Adventurer 0 Explorer 0 Win Type - Total 3 Types 2/0/1/0/0/0/0/0/0/0 Lore% 64 Gallery% 54 Achievement% 45 Wizard Run 0 Options --------- Layout 0 ASCII 0 Keyboard 0 Movement Numpad Keybinds 0 Fullscreen 2 Font 18/Terminus Map View 76x50 Zoom Use 0% Tactical HUD 1 Map Filters NONE Filters NONE Steam 1 RUN: 4d5cb93f-673a-44b5-b637-40954619f08f